lending/lending_fUSD_20260104
["ID","MTS","AMOUNT","RATE_DAILY","PERIOD"]
[400401669,1767513312611,250.0,0.00043705,120]
[400401670,1767513312860,250.0,0.00043705,120]
[400401671,1767513312938,500.0,0.00043705,120]
[400401672,1767513313079,500.0,0.00043705,120]
[400401673,1767513313140,500.0,0.00043705,120]
[400401674,1767513313248,250.0,0.00043705,120]
[400401675,1767513313596,500.0,0.00043705,120]
[400401676,1767513313664,250.0,0.00043705,120]
[400401677,1767513313763,500.0,0.00043705,120]
[400401678,1767513313853,500.0,0.00043705,120]
[400401679,1767513313927,300.0,0.00043705,120]
[400401680,1767513313976,500.0,0.00043705,120]
[400401681,1767513314027,250.0,0.00043705,120]
[400401682,1767513314076,600.0,0.00043705,120]
[400401683,1767513314123,250.0,0.00043705,120]
[400401684,1767513314230,500.0,0.00043705,120]
[400401685,1767513314318,250.0,0.00043705,120]
[400401686,1767513314412,500.0,0.00043705,120]
[400401687,1767513314467,500.0,0.00043705,120]
[400401688,1767513314514,518.5,0.00043705,120]
[400401689,1767513314564,250.0,0.00043705,120]
[400401690,1767513314613,600.0,0.00043705,120]
[400401691,1767513314662,311.1,0.00043705,120]
[400401692,1767513314835,500.0,0.00043705,120]
[400401693,1767513314941,250.0,0.00043705,120]
[400401694,1767513315041,500.0,0.00043705,120]
[400401695,1767513315094,537.6845,0.00043705,120]
[400401696,1767513315166,500.0,0.00043705,120]
[400401697,1767513315230,250.0,0.00043705,120]
[400401698,1767513315561,322.6107,0.00043705,120]
[400401699,1767513315614,500.0,0.00043705,120]
[400401700,1767513315668,250.0,0.00043705,120]
[400401701,1767513315746,557.5788265,0.00043705,120]
[400401702,1767513315794,500.0,0.00043705,120]
[400401703,1767513315841,500.0,0.00043705,120]
[400401704,1767513315896,250.0,0.00043705,120]
[400401705,1767513316313,250.0,0.00043705,120]
[400401706,1767513316364,334.5472959,0.00043705,120]
[400401707,1767513316419,578.20924308,0.00043705,120]
[400401708,1767513316517,500.0,0.00043705,120]
[400401709,1767513316681,250.0,0.00043705,120]
[400401710,1767513316949,500.0,0.00043705,120]
[400401711,1767513316998,346.92554585,0.00043705,120]
[400401712,1767513317060,599.60298507,0.00043705,120]
[400401713,1767513317171,500.0,0.00043705,120]
[400401714,1767513317350,250.0,0.00043705,120]
[400401715,1767513317404,250.0,0.00043705,120]
[400401716,1767513317625,500.0,0.00043705,120]
[400401717,1767513317679,359.76179104,0.00043705,120]
[400401718,1767513317792,500.0,0.00043705,120]
[400401719,1767513317987,250.0,0.00043705,120]
[400401720,1767513318038,621.78829552,0.00043705,120]
[400401721,1767513318086,250.0,0.00043705,120]
[400401722,1767513318132,500.0,0.00043705,120]
[400401723,1767513318298,500.0,0.00043705,120]
[400401724,1767513318355,373.07297731,0.00043705,120]
[400401725,1767513318450,500.0,0.00043705,120]
[400401726,1767513318499,222.61331561,0.00043705,120]
[400401727,1767513318628,250.0,0.00043705,120]
[400401728,1767513318753,500.0,0.00043705,120]
[400401729,1767513318904,500.0,0.00043705,120]
[400401730,1767513319056,386.87667747,0.00043705,120]
[400401731,1767513319103,500.0,0.00043705,120]
[400401732,1767513319403,500.0,0.00043705,120]
[400401733,1767513319660,401.19111454,0.00043705,120]
[400401734,1767513319720,500.0,0.00043705,120]
[400401735,1767513320067,500.0,0.00043705,120]
[400401736,1767513320234,500.0,0.00043705,120]
[400401737,1767513320329,500.0,0.00043705,120]
[400401738,1767513320380,416.03518578,0.00043705,120]
[400401739,1767513320780,500.0,0.00043705,120]
[400401740,1767513320907,500.0,0.00043705,120]
[400401741,1767513320966,500.0,0.00043705,120]
[400401742,1767513321132,431.42848765,0.00043705,120]
[400401743,1767513321447,500.0,0.00043705,120]
[400401744,1767513321527,500.0,0.00043705,120]
[400401745,1767513321594,500.0,0.00043705,120]
[400401746,1767513321713,447.3913417,0.00043705,120]
[400401747,1767513322088,500.0,0.00043705,120]
[400401748,1767513322195,500.0,0.00043705,120]
[400401749,1767513322278,500.0,0.00043705,120]
[400401750,1767513322364,463.94482134,0.00043705,120]
[400401751,1767513322814,500.0,0.00043705,120]
[400401752,1767513323078,463.94482134,0.00043705,120]
[400401753,1767513323289,306.54766363,0.00017999,2]
[400401754,1767513323474,500.0,0.00043705,120]
[400401755,1767513323513,4682.55471803,0.000179,2]
[400401756,1767513323563,500.0,0.00043705,120]
[400401757,1767513324095,500.0,0.00043705,120]
[400401758,1767513324210,500.0,0.00043705,120]
[400401760,1767513324830,500.0,0.00043705,120]
[400401761,1767513325461,500.0,0.00043705,120]
[400401762,1767513326089,500.0,0.00043705,120]
[400401763,1767513326695,500.0,0.00043705,120]
[400401764,1767513327338,500.0,0.00043705,120]
[400401765,1767513327992,500.0,0.00043705,120]
[400401766,1767513328642,500.0,0.00043705,120]
[400401767,1767513331859,151.0,0.00043705,120]
[400401768,1767513332485,151.0,0.00043705,120]
[400401769,1767513333107,151.0,0.00043705,120]
[400401770,1767513336491,151.0,0.00043705,120]
[400401771,1767513337093,156.587,0.00043705,120]
[400401772,1767513337739,162.380719,0.00043705,120]
[400401773,1767513338341,168.3888056,0.00043705,120]
[400401774,1767513338955,174.61919141,0.00043705,120]
[400401775,1767513339593,181.08010149,0.00043705,120]
[400401776,1767513340196,187.78006525,0.00043705,120]
[400401777,1767513341353,194.72792766,0.00043705,120]
[400401788,1767513355604,152.72812501,0.00017999,2]
[400401789,1767513355694,500.0,0.00017999,2]
[400401790,1767513355782,500.0,0.00017999,2]
[400401791,1767513356107,500.0,0.00017999,2]
[400401792,1767513356147,500.0,0.00017999,2]
[400401793,1767513356431,500.0,0.00017999,2]
[400401794,1767513356472,500.0,0.00017999,2]
[400401795,1767513356767,500.0,0.00017999,2]
[400401796,1767513356814,500.0,0.00017999,2]
[400401797,1767513357090,500.0,0.00017999,2]
[400401798,1767513357131,199.49589078,0.00017999,2]
[400401799,1767513357170,162.21269235,0.00017999,2]
[400401800,1767513357216,500.0,0.00017999,2]
[400401801,1767513357257,500.0,0.00017999,2]
[400401802,1767513357305,500.0,0.00017999,2]
[400401803,1767513362520,500.0,0.00043705,120]
[400401804,1767513363965,523.06977252,0.000179,2]
[400401805,1767513366554,199.92628631,0.00043705,120]
[400401806,1767513371335,240.2458547,0.00017999,2]
[400401830,1767513385853,427.94864132,0.000179,3]
[400401841,1767513412011,806.32466634,0.000179,2]
[400401844,1767513422123,150.0,0.00017999,2]
[400401845,1767513425453,212.0,0.00043705,30]
[400401846,1767513427878,164.51582301,0.00043705,120]
[400401847,1767513427924,174.75869154,0.00043705,120]
[400401850,1767513429281,33840.7730233,0.000179,2]
[400401851,1767513436849,-631.96834189,0.000179,2]
[400401852,1767513438433,-362.02349218,0.000179,2]
[400401853,1767513440899,-181.65421159,0.000179,2]
[400401854,1767513441190,-905.70119595,0.000179,2]
[400401856,1767513442408,-163.03828711,0.000179,2]
[400401857,1767513443931,-195.0,0.000179,2]
[400401858,1767513444305,-2169.44067901,0.000179,2]
[400401859,1767513447228,-300.0,0.000179,2]
[400401860,1767513447674,-4638.88135802,0.000179,2]
[400401861,1767513448717,-226.47774778,0.000179,2]
[400401862,1767513450450,-495.76953618,0.000179,2]
[400401863,1767513450530,-500.0,0.000179,2]
[400401864,1767513450617,-2500.0,0.00017925,2]
[400401865,1767513450703,-300.0,0.0001795,2]
[400401866,1767513456262,-220.23381288,0.00017966,2]
[400401867,1767513458090,-255.78449296,0.00017966,2]
[400401868,1767513462597,-345.15939816,0.00017966,2]
[400401869,1767513464643,-195.53881618,0.00017966,2]
[400401870,1767513469158,-1483.28347982,0.00017966,2]
[400401871,1767513469250,-2500.0,0.00017966,2]
[400401872,1767513469344,-417.4055985,0.00017966,2]
[400401873,1767513469436,-300.0,0.0001798,2]
[400401874,1767513469521,-298.63184336,0.0001798,2]
[400401875,1767513474347,-1.36815664,0.0001798,2]
[400401876,1767513474373,-296.99019583,0.0001798,2]
[400401877,1767513475808,-3.00980417,0.0001798,2]
[400401878,1767513475847,-207.44371838,0.00017999,2]
[400401879,1767513479816,-276.81012218,0.00017999,2]
[400401880,1767513482844,-15.74615944,0.00017999,2]
[400401881,1767513482879,-429.5269318,0.00017999,2]
[400401882,1767513484413,-70.4730682,0.00017999,2]
[400401883,1767513484445,-109.32582062,0.00017999,2]
[400401884,1767513485896,2908.674273,0.00017993,2]
[400401885,1767513487072,-390.67417938,0.00017999,2]
[400401886,1767513487103,-72.49953739,0.00017999,2]
[400401887,1767513487635,500.0,0.00017999,2]
[400401888,1767513487895,500.0,0.00017999,2]
[400401889,1767513488136,500.0,0.00017999,2]
[400401890,1767513488378,500.0,0.00017999,2]
[400401891,1767513488631,500.0,0.00017999,2]
[400401892,1767513488912,500.0,0.00017999,2]
[400401893,1767513489163,500.0,0.00017999,2]
[400401894,1767513489428,500.0,0.00017999,2]
[400401895,1767513489542,-262.12448964,0.00017999,2]
[400401896,1767513489691,500.0,0.00017999,2]
[400401897,1767513489960,500.0,0.00017999,2]
[400401898,1767513490192,500.0,0.00017999,2]
[400401899,1767513490426,500.0,0.00017999,2]
[400401900,1767513490700,500.0,0.00017999,2]
[400401901,1767513490941,500.0,0.00017999,2]
[400401902,1767513491193,91.335727,0.00017999,2]
[400401903,1767513492088,-244.89063938,0.00017999,2]
[400401904,1767513494553,-163.77363362,0.00017999,2]
[400401905,1767513494576,-111.77121204,0.00017999,2]
[400401906,1767513498537,-684.7274,0.000179,2]
[400401907,1767513498643,-388.22878796,0.00017999,2]
[400401908,1767513498737,-500.0,0.00017999,2]
[400401909,1767513498838,-572.51317523,0.00017999,2]
[400401910,1767513499309,-165.37597297,0.00017999,2]
[400401911,1767513499338,-10.55245252,0.00017999,2]
[400401912,1767513500334,151.0,0.00043705,120]
[400401913,1767513500929,151.0,0.00043705,120]
[400401914,1767513501503,-364.72266039,0.00017999,2]
[400401915,1767513501579,151.0,0.00043705,120]
[400401916,1767513504032,-124.72488709,0.00017999,2]
[400401917,1767513504063,-36.0349912,0.00017999,2]
[400401918,1767513505512,-195.57434488,0.00017999,2]
[400401919,1767513507675,-268.39066392,0.00017999,2]
[400401920,1767513507706,-66.28121139,0.00017999,2]
[400401921,1767513509213,-300.0,0.00017999,2]
[400401922,1767513512170,-133.71878861,0.00017999,2]
[400401923,1767513512200,-48.89963194,0.00017999,2]
[400401924,1767513515276,-451.10036806,0.00017999,2]
[400401925,1767513515339,-64.30209822,0.00017999,2]
[400401926,1767513516764,-435.69790178,0.00017999,2]
[400401927,1767513516806,-159.47719592,0.00017999,2]
[400401928,1767513518689,-340.52280408,0.00017999,2]
[400401929,1767513518719,-19.54414071,0.00017999,2]
[400401930,1767513521310,-432.08716975,0.00017999,2]
[400401931,1767513523452,-48.36868954,0.00017999,2]
[400401932,1767513523482,-195.04262592,0.00017999,2]
[400401933,1767513526008,-304.95737408,0.00017999,2]
[400401934,1767513526038,-87.04262592,0.00017999,2]
[400401935,1767513527766,5445.42377193,0.000179,2]
[400401936,1767513528609,-412.95737408,0.00017999,2]
[400401937,1767513528639,-71.42627393,0.00017999,2]
[400401938,1767513530040,-243.7905508,0.00017999,2]
[400401939,1767513531658,-184.78317527,0.00017999,2]
[400401940,1767513531688,-165.30030617,0.00017999,2]
[400401941,1767513533459,-300.0,0.00017999,2]
[400401942,1767513534989,-34.69969383,0.00017999,2]
[400401943,1767513535018,-145.72878142,0.00017999,2]
[400401944,1767513536511,-300.0,0.00017999,2]
[400401945,1767513538027,-54.27121858,0.00017999,2]
[400401946,1767513538055,-114.25459775,0.00017999,2]
[400401947,1767513538353,1600.0,0.00025336,120]
[400401948,1767513538556,1600.0,0.00027639,120]
[400401949,1767513540049,-151.78798009,0.00017999,2]
[400401950,1767513542747,-76.50373585,0.00017999,2]
[400401951,1767513542772,-111.29741654,0.00017999,2]
[400401952,1767513545392,-209.38044353,0.00017999,2]
[400401953,1767513548645,-138.34505591,0.00017999,2]
[400401954,1767513548675,-48.96700842,0.00017999,2]
[400401955,1767513551347,-179.51236539,0.00017999,2]
[400401956,1767513553381,-185.87709987,0.00017999,2]
[400401957,1767513556640,-85.64352632,0.00017999,2]
[400401958,1767513556669,-73.50647368,0.00017999,2]
[400401959,1767513558901,500.0,0.000179,2]
[400401960,1767513560408,-300.86586413,0.00017999,2]
[400401961,1767513562026,-125.62766219,0.00017999,2]
[400401962,1767513562055,-87.07319291,0.00017999,2]
[400401963,1767513563458,-309.13875606,0.00017999,2]
[400401964,1767513563991,5493.0,0.00043705,30]
[400401965,1767513564947,-103.78805103,0.00017999,2]
[400401966,1767513564980,-347.09886432,0.00017999,2]
[400401967,1767513568048,-152.90113568,0.00017999,2]
[400401968,1767513568085,-273.48490296,0.00017999,2]
[400401969,1767513571785,-226.51509704,0.00017999,2]
[400401970,1767513571815,-82.12126159,0.00017999,2]
[400401971,1767513574416,-417.87873841,0.00017999,2]
[400401972,1767513574447,-162.01974344,0.00017999,2]
[400401973,1767513577492,-188.68007512,0.00017999,2]
[400401974,1767513579519,-149.30018144,0.00017999,2]
[400401975,1767513579550,-111.98643796,0.00017999,2]
[400401976,1767513581513,-188.41548492,0.00017999,2]
[400401977,1767513585307,-141.00190412,0.00017999,2]
[400401978,1767513585335,-36.56112403,0.00017999,2]
[400401979,1767513585614,431.13,0.00043705,30]
[400401980,1767513588247,-287.45422444,0.00017999,2]
[400401981,1767513591044,-165.56444758,0.00017999,2]
[400401982,1767513592634,-10.42020395,0.00017999,2]
[400401983,1767513592664,-340.78422959,0.00017999,2]
[400401984,1767513594597,-159.21577041,0.00017999,2]
[400401985,1767513594630,-59.01864862,0.00017999,2]
[400401986,1767513596571,-440.98135138,0.00017999,2]
[400401987,1767513596600,-59.01864862,0.00017999,2]
[400401988,1767513598209,-194.09596164,0.00017999,2]
[400401989,1767513599799,-37.44414072,0.00017999,2]
[400401990,1767513599825,-240.26810597,0.00017999,2]
[400401991,1767513601349,300.0,0.00017998,2]
[400401992,1767513601447,300.0,0.00017998,2]
[400401993,1767513601550,1200.0,0.00017998,2]
[400401994,1767513602444,255.0,0.00017998,2]
[400401995,1767513603669,304.0,0.00017999,2]
[400401996,1767513606208,-259.73189403,0.00017999,2]
[400401997,1767513606237,-24.23937245,0.00017999,2]
[400401998,1767513609508,-229.86321288,0.00017999,2]
[400401999,1767513611160,-199.97801453,0.00017999,2]
[400402000,1767513614121,200.0,0.00017457,2]
[400402001,1767513614743,207.4,0.00017457,2]
[400402002,1767513615405,215.0738,0.00017457,2]
[400402003,1767513615508,-45.91940014,0.00017999,2]
[400402004,1767513615533,-212.60248929,0.00017999,2]
[400402005,1767513616040,318.48492014,0.00017457,2]
[400402006,1767513616766,601.87233082,0.000179,2]
[400402007,1767513620216,-287.39751071,0.00017999,2]
[400402008,1767513620244,-95.29939762,0.00017999,2]
[400402009,1767513624346,-249.67240396,0.00017999,2]
[400402010,1767513626338,-155.02819842,0.00017999,2]
[400402011,1767513626364,-35.0994648,0.00017999,2]
[400402012,1767513627749,-271.67632169,0.00017999,2]
[400402013,1767513631937,-205.27058711,0.00017999,2]
[400402014,1767513633099,250.0,0.00032876,120]
[400402015,1767513633417,-175.59501588,0.00017999,2]
[400402016,1767513634251,-119.13439701,0.00017999,2]
[400402017,1767513634349,-497.64325944,0.00017999,2]
[400402018,1767513634867,-191.39067736,0.00017999,2]
[400402019,1767513639176,-125.33287095,0.00017999,2]
[400402020,1767513639203,-25.69712905,0.00017999,2]
[400402021,1767513640714,-190.29659076,0.00017999,2]
[400402022,1767513642176,-223.4736911,0.00017999,2]
[400402023,1767513646899,-60.53258909,0.00017999,2]
[400402024,1767513646925,-242.95502391,0.00017999,2]
[400402025,1767513647761,1719.72335841,0.000179,2]
[400402026,1767513648374,-196.34804293,0.00017999,2]
[400402027,1767513649963,-60.69693316,0.00017999,2]
[400402028,1767513649989,-221.3506559,0.00017999,2]
[400402029,1767513651940,-168.28638152,0.00017999,2]
[400402030,1767513655264,-110.36296258,0.00017999,2]
[400402031,1767513655293,-90.41793891,0.00017999,2]
[400402032,1767513657070,7046.73132869,0.00017999,2]
[400402033,1767513657154,2807.93934351,0.00017999,2]
[400402034,1767513657190,-376.16799028,0.00017999,2]
[400402035,1767513658911,697.21725437,0.00017999,2]
[400402036,1767513660101,348.60862719,0.00017999,2]
[400402037,1767513660133,-33.41407081,0.00017999,2]
[400402038,1767513660157,-166.41329587,0.00017999,2]
[400402039,1767513661352,174.30431359,0.00017999,2]
[400402040,1767513661444,300.0,0.00017998,2]
[400402041,1767513662363,500.0,0.00043676,120]
[400402042,1767513664073,-209.7421574,0.00017999,2]
[400402043,1767513666582,-123.84454673,0.00017999,2]
[400402044,1767513666609,-38.1489004,0.00017999,2]
[400402045,1767513668084,-458.62884988,0.00017999,2]
[400402046,1767513669988,-3.22224972,0.00017999,2]
[400402047,1767513670015,-203.88734398,0.00017999,2]
[400402048,1767513671581,-246.08198976,0.00017999,2]
[400402049,1767513673152,-50.03066626,0.00017999,2]
[400402050,1767513673176,-239.38558706,0.00017999,2]
[400402051,1767513674739,-187.58382529,0.00017999,2]
[400402052,1767513676301,2846.39714242,0.000179,2]
[400402053,1767513677266,-73.03058765,0.00017999,2]
[400402054,1767513677290,-305.44719933,0.00017999,2]
[400402055,1767513679810,-253.84061876,0.00017999,2]
[400402056,1767513681983,-1.56514949,0.00017999,2]
[400402057,1767513682010,-316.98977768,0.00017999,2]
[400402058,1767513683647,5050.0,0.00043676,35]
[400402059,1767513684168,-155.19416157,0.00017999,2]
[400402060,1767513686867,-27.81606075,0.00017999,2]
[400402061,1767513686893,-198.9700889,0.00017999,2]
[400402062,1767513687093,5050.0,0.00043676,36]
[400402064,1767513691112,5050.0,0.00043676,37]
[400402065,1767513693261,494.396,0.0001764,2]
[400402066,1767513700786,1100.0,0.00043676,30]
[400402067,1767513704837,1100.0,0.00043676,30]
[400402068,1767513708214,500.0,0.00017899,2]
[400402069,1767513721431,300.0,0.00017999,2]
[400402070,1767513732645,151.0,0.00017989,2]
[400402071,1767513733232,151.0,0.00017989,2]
[400402072,1767513733857,151.0,0.00017989,2]
[400402073,1767513734499,151.0,0.00017989,2]
[400402074,1767513735214,151.0,0.00017989,2]
[400402075,1767513735721,151.0,0.00017989,2]
[400402076,1767513736354,151.0,0.00017989,2]
[400402077,1767513736985,151.0,0.00017989,2]
[400402078,1767513737599,151.0,0.00017989,2]
[400402079,1767513738211,151.0,0.00017989,2]
[400402080,1767513738878,21.14731892,0.00017989,2]
[400402081,1767513738962,129.85268108,0.00017989,2]
[400402082,1767513739487,151.0,0.00017989,2]
[400402083,1767513740138,154.22792594,0.00017989,2]
[400402084,1767513782775,300.0,0.00017999,2]
[400402085,1767513796064,-227.49922962,0.00017999,2]
[400402086,1767513796087,-152.90274074,0.00017999,2]
[400402087,1767513797804,-114.16727963,0.00017999,2]
[400402088,1767513797834,-78.67002102,0.00017999,2]
[400402089,1767513800314,-213.26147064,0.00017999,2]
[400402090,1767513802498,-177.98369326,0.00017999,2]
[400402091,1767513805038,-30.08481508,0.00017999,2]
[400402092,1767513805065,-180.79882043,0.00017999,2]
[400402093,1767513807681,-244.70273456,0.00017999,2]
[400402094,1767513809758,-74.49844501,0.00017999,2]
[400402095,1767513809787,-161.41992823,0.00017999,2]
[400402097,1767513814915,-338.58007177,0.00017999,2]
[400402098,1767513814943,-124.17030155,0.00017999,2]
[400402099,1767513818048,-361.76009841,0.00017999,2]
[400402100,1767513821689,151.0,0.00043676,65]
[400402101,1767513822063,151.0,0.00043676,65]
[400402102,1767513822371,151.0,0.00043676,65]
[400402103,1767513822558,-14.06960004,0.00017999,2]
[400402104,1767513822588,-166.82065152,0.00017999,2]
[400402105,1767513822741,151.0,0.00043676,65]
[400402106,1767513823031,500.0,0.000179,2]
[400402107,1767513823142,151.0,0.00043676,65]
[400402108,1767513823439,159.499334,0.00043676,65]
[400402109,1767513823648,500.0,0.000179,2]
[400402110,1767513824305,500.0,0.000179,2]
[400402111,1767513824612,-333.17934848,0.00017999,2]
[400402112,1767513824640,-166.82065152,0.00017999,2]
[400402113,1767513824915,500.0,0.000179,2]
[400402114,1767513825334,500.0,0.000179,2]
[400402115,1767513825745,500.0,0.000179,2]
[400402116,1767513826233,500.0,0.000179,2]
[400402117,1767513826643,500.0,0.000179,2]
[400402118,1767513827232,500.0,0.000179,2]
[400402119,1767513827682,500.0,0.000179,2]
[400402120,1767513828221,500.0,0.000179,2]
[400402121,1767513828901,296.62190977,0.000179,2]
[400402122,1767513829502,-163.43658367,0.00017999,2]
[400402123,1767513832204,-169.74276481,0.00017999,2]
[400402124,1767513832235,-321.61320066,0.00017999,2]
[400402125,1767513833733,-178.38679934,0.00017999,2]
[400402126,1767513833763,-168.49775134,0.00017999,2]
[400402127,1767513835686,-181.00947801,0.00017999,2]
[400402128,1767513837829,-150.49277065,0.00017999,2]
[400402129,1767513837858,-147.96121507,0.00017999,2]
[400402130,1767513839381,-248.22109801,0.00017999,2]
[400402131,1767513841024,-103.81768692,0.00017999,2]
[400402132,1767513841054,-172.18448779,0.00017999,2]
[400402133,1767513841432,300.0,0.00017998,2]
[400402134,1767513843430,-248.34435654,0.00017999,2]
[400402135,1767513845955,-79.47115567,0.00017999,2]
[400402136,1767513845988,-162.65654403,0.00017999,2]
[400402137,1767513849015,-294.09938336,0.00017999,2]
[400402138,1767513849046,-32.1628949,0.00017999,2]
[400402139,1767513851153,-238.60431542,0.00017999,2]
[400402140,1767513852584,-229.23278968,0.00017999,2]
[400402141,1767513852614,-245.75464601,0.00017999,2]
[400402142,1767513854610,-176.88943954,0.00017999,2]
[400402145,1767513857709,213.398,0.00017899,2]
[400402147,1767513858939,189.346878,0.00043676,65]
[400402149,1767513860738,-77.35591445,0.00017999,2]
[400402150,1767513860768,-143.40548703,0.00017999,2]
[400402152,1767513862812,-182.8671503,0.00017999,2]
[400402155,1767513865526,-164.77834246,0.00017999,2]
[400402156,1767513865876,159.192274,0.00043676,65]
[400402157,1767513866190,159.192274,0.00043676,65]
[400402158,1767513866494,159.192274,0.00043676,65]
[400402159,1767513866805,159.192274,0.00043676,65]
[400402161,1767513867160,159.192274,0.00043676,65]
[400402162,1767513867477,159.192274,0.00043676,65]
[400402163,1767513867784,159.192274,0.00043676,65]
[400402164,1767513868126,-8.94902021,0.00017999,2]
[400402165,1767513868153,-230.97624022,0.00017999,2]
[400402166,1767513868200,159.192274,0.00043676,65]
[400402167,1767513868476,159.192274,0.00043676,65]
[400402168,1767513868771,159.192274,0.00043676,65]
[400402169,1767513869099,159.192274,0.00043676,65]
[400402170,1767513869413,159.192274,0.00043676,65]
[400402171,1767513869699,159.192274,0.00043676,65]
[400402172,1767513870018,159.192274,0.00043676,65]
[400402173,1767513870320,159.192274,0.00043676,65]
[400402174,1767513870446,-199.20649013,0.00017999,2]
[400402175,1767513870602,159.192274,0.00043676,65]
[400402176,1767513870944,159.192274,0.00043676,65]
[400402177,1767513871223,159.192274,0.00043676,65]
[400402178,1767513871509,159.192274,0.00043676,65]
[400402179,1767513871804,159.192284,0.00043676,65]
[400402180,1767513872318,-69.81726965,0.00017999,2]
[400402181,1767513872350,-290.51201526,0.00017999,2]
[400402182,1767513875532,-185.79476472,0.00017999,2]
[400402183,1767513880632,-23.69322002,0.00017999,2]
[400402184,1767513880662,-313.40948971,0.00017999,2]
[400402185,1767513882485,-186.59051029,0.00017999,2]
[400402186,1767513882514,-169.56441531,0.00017999,2]
[400402187,1767513883972,-230.13386327,0.00017999,2]
[400402188,1767513887562,-100.30172142,0.00017999,2]
[400402189,1767513887591,-203.13612012,0.00017999,2]
[400402190,1767513890417,-164.37528134,0.00017999,2]
[400402191,1767513893285,-132.48859854,0.00017999,2]
[400402192,1767513893318,-167.64696636,0.00017999,2]
[400402193,1767513893804,178.87,0.0001444,2]
[400402194,1767513894911,-332.35303364,0.00017999,2]
[400402195,1767513894941,-84.14985424,0.00017999,2]
[400402196,1767513898032,-401.24071103,0.00017999,2]
[400402197,1767513899551,-14.60943473,0.00017999,2]
[400402198,1767513899584,-144.81532413,0.00017999,2]
[400402199,1767513901301,1200.0,0.00017998,2]
[400402200,1767513901569,300.0,0.00017998,2]
[400402201,1767513903826,-166.67037824,0.00017999,2]
[400402202,1767513905811,-165.03093895,0.00017999,2]
[400402203,1767513913753,701.36,0.00017999,2]
[400402204,1767513923525,151.0,0.00043676,65]
[400402205,1767513923817,153.341613,0.00043676,65]
[400402206,1767513928709,151.0,0.00043676,65]
[400402215,1767513944511,169.036857,0.00043707,65]
[400402216,1767513949370,3538.01,0.00017468,2]
[400402217,1767513960916,500.0,0.00043707,120]
[400402218,1767513961274,300.0,0.00017998,2]
[400402219,1767513967186,379000.0,0.00043707,30]
[400402225,1767513991067,-225.63160369,0.00017999,2]
[400402226,1767513991097,-192.03704288,0.00017999,2]
[400402227,1767513993755,-193.40312737,0.00017999,2]
[400402228,1767513998563,-114.55982975,0.00017999,2]
[400402229,1767513998592,-151.29983095,0.00017999,2]
[400402230,1767514002052,-227.1731616,0.00017999,2]
[400402231,1767514004718,-121.52700745,0.00017999,2]
[400402232,1767514004745,-110.22799225,0.00017999,2]
[400402233,1767514007581,-389.77200775,0.00017999,2]
[400402234,1767514007610,-21.57488595,0.00017999,2]
[400402235,1767514010158,-173.19292821,0.00017999,2]
[400402236,1767514010395,1852.42,0.00017376,2]
[400402237,1767514011667,-218.45570258,0.00017999,2]
[400402238,1767514014340,-86.77648326,0.00017999,2]
[400402239,1767514014370,-155.66275106,0.00017999,2]
[400402240,1767514016789,-156.69908358,0.00017999,2]